fUSD/lending_fUSD_20250319
["ID","MTS","AMOUNT","RATE_DAILY","PERIOD"]
[356381167,1742353832091,-150.0,9.899e-05,2]
[356381168,1742353832100,-171.5982,9.9e-05,2]
[356381169,1742353832109,-1194.7119,9.9e-05,2]
[356381170,1742353832119,-461.7171,9.9e-05,2]
[356381171,1742353832128,-601.7958,9.9e-05,2]
[356381172,1742353832138,-184.45108722,9.9e-05,2]
[356381173,1742353832150,-1423.36421278,9.9e-05,2]
[356381174,1742353832159,-5000.0,9.9e-05,2]
[356381175,1742353832170,-500.0,9.945e-05,2]
[356381176,1742353832180,-50.19297036,0.0001,2]
[356381177,1742353832192,-344.92731266,0.0001,2]
[356381178,1742353832204,-269.32716657,0.0001,2]
[356381179,1742353832214,-372.17327268,0.0001,2]
[356381180,1742353832225,-3336.06246916,0.0001,2]
[356381181,1742353832236,-207798.4503796,0.0001,2]
[356381182,1742353832247,-3012.10207721,0.0001,2]
[356381183,1742353832263,-721.64177466,0.0001,2]
[356381184,1742353832274,-16368.01496996,0.0001,2]
[356381185,1742353832289,-724.68,0.0001,2]
[356381186,1742353832300,-1124.49855846,0.0001,2]
[356381187,1742353832315,-700.0,0.0001,2]
[356381188,1742353832326,-1328.57224564,0.0001,2]
[356381189,1742353832337,-1550.0,0.0001,2]
[356381202,1742353838055,-2559.33589369,0.0001,2]
[356381203,1742353838108,-278.35824588,0.0001,2]
[356381204,1742353838214,-661.29448133,0.0001,2]
[356381227,1742353840154,-905.0,0.0001,2]
[356381228,1742353840207,-647.93106815,0.0001,2]
[356381229,1742353840262,-4534.94174274,0.0001,2]
[356381230,1742353840317,-1557.41079065,0.0001,2]
[356381231,1742353840477,-2685.66968128,0.0001,2]
[356381232,1742353840489,-1035.5899075,0.0001,2]
[356381245,1742353843110,-493.09706335,0.0001,2]
[356381246,1742353844172,-6597.416152,0.0001,2]
[356381247,1742353846080,-42013.34832648,0.0001,2]
[356381248,1742353846186,-502.00081645,0.0001,2]
[356381249,1742353846345,-101082.59496719,0.0001,2]
[356381251,1742354575003,515.77,0.00029933,30]
[356381270,1742355032195,-2507.43057068,9e-05,2]
[356381272,1742355032207,-5574.45844633,9e-05,2]
[356381274,1742355032216,-300.0,9.039e-05,2]
[356381276,1742355032226,-2040.57553626,9.04e-05,2]
[356381277,1742355032236,-45.88182343,9.113e-05,2]
[356381278,1742355032248,-455.35628771,9.113e-05,2]
[356381279,1742355032257,-502.46456573,9.113e-05,2]
[356381280,1742355032268,-289.33603092,9.113e-05,2]
[356381281,1742355032279,-214.98023256,9.113e-05,2]
[356381282,1742355032289,-158.38440415,9.139e-05,2]
[356381283,1742355032299,-126.63536329,9.139e-05,2]
[356381284,1742355032410,-23.36463671,9.139e-05,2]
[356381285,1742355032420,-1262.33819384,9.14e-05,2]
[356381286,1742355032432,-402.91371413,9.14e-05,2]
[356381287,1742355032443,-614.72573488,9.14e-05,2]
[356381288,1742355032471,-379.56376964,9.14e-05,2]
[356381289,1742355032483,-320.09861389,9.14e-05,2]
[356381290,1742355032495,-166055.03114821,9.14e-05,2]
[356381291,1742355032504,-250.0,9.445e-05,2]
[356381292,1742355032514,-16582.54006122,9.89e-05,2]
[356381293,1742355032524,-3021.4592,9.9e-05,2]
[356381294,1742355032534,-22782.4602,9.9e-05,2]
[356381295,1742355032544,-1017.6112,9.9e-05,2]
[356381296,1742355032554,-37988.9985,9.9e-05,2]
[356381297,1742355032563,-426.6134,9.9e-05,2]
[356381298,1742355032572,-250.0,9.9e-05,2]
[356381299,1742355032582,-250.0,9.9e-05,2]
[356381300,1742355032592,-1775.1222341,9.999e-05,2]
[356381301,1742355032602,-4584.9944043,9.999e-05,2]
[356381302,1742355032612,-1931.0999362,9.999e-05,2]
[356381303,1742355032623,-332.2237248,0.0001,2]
[356381304,1742355032632,-723327.84569113,0.0001,2]
[356381306,1742355038140,-570.49393853,0.0001,2]
[356381307,1742355038250,-622.55761214,0.0001,2]
[356381308,1742355038261,-9759.00787238,0.0001,2]
[356381309,1742355038306,-2683.6833661,0.0001,2]
[356381359,1742355040296,-1737.51981443,0.0001,2]
[356381360,1742355040308,-535.16501175,0.0001,2]
[356381361,1742355040514,-4084.82671845,0.0001,2]
[356381362,1742355040527,-5933.23132938,0.0001,2]
[356381363,1742355040539,-566.12214868,0.0001,2]
[356381364,1742355040569,-1240.35979096,0.0001,2]
[356381365,1742355040680,-558.89350208,0.0001,2]
[356381377,1742355043272,-932.83978509,0.0001,2]
[356381378,1742355043285,-5550.4082954,0.0001,2]
[356381379,1742355043384,-4944.36932319,0.0001,2]
[356381405,1742356232333,-819.417,9.8e-05,2]
[356381406,1742356232344,-227.62269031,9.823e-05,2]
[356381407,1742356232386,-22.37730969,9.823e-05,2]
[356381408,1742356232396,-297.0,9.89e-05,2]
[356381409,1742356232405,-135.98269031,9.89e-05,2]
[356381410,1742356232416,-364.01730969,9.89e-05,2]
[356381411,1742356232426,-237.53128955,9.893e-05,2]
[356381412,1742356232437,-12.46871045,9.893e-05,2]
[356381413,1742356232447,-1568.0393284,9.997e-05,2]
[356381414,1742356232456,-336.78823084,9.997e-05,2]
[356381415,1742356232647,-1091.02892486,9.997e-05,2]
[356381416,1742356232658,-150.0,9.999e-05,2]
[356381417,1742356232668,-300.0,9.999e-05,2]
[356381418,1742356232677,-3.23422011,0.0001,2]
[356381420,1742356238282,-162.87764229,0.0001,2]
[356381421,1742356238291,-7290.04340898,0.0001,2]
[356381422,1742356238303,-998.60735764,0.0001,2]
[356381423,1742356238315,-996.7615039,0.0001,2]
[356381424,1742356238326,-941.57868834,0.0001,2]
[356381425,1742356238338,-5805.96,0.0001,2]
[356381426,1742356238390,-1695.70601764,0.0001,2]
[356381427,1742356238401,-2052.01424084,0.0001,2]
[356381428,1742356238412,-31678.82433498,0.0001,2]
[356381429,1742356238423,-5363.89292613,0.0001,2]
[356381430,1742356238498,-288.90004575,0.0001,2]
[356381431,1742356238509,-592.14361496,0.0001,2]
[356381435,1742356243048,-2482.0,0.0001,2]
[356381436,1742356243060,-40584.10229942,0.0001,2]
[356381447,1742356244251,-5042.79985555,0.0001,2]
[356381454,1742356246359,-560.83019163,0.0001,2]
[356381456,1742356246372,-16074.58931408,0.0001,2]
[356381457,1742356246384,-1718.69375,0.0001,2]
[356381458,1742356246411,-1729.24609705,0.0001,2]
[356381459,1742356246466,-5148.13980177,0.0001,2]
[356381460,1742356246522,-37499.9999998,0.0001,2]
[356381461,1742356246682,-2647.73328687,0.0001,2]
[356381462,1742356246735,-710.81898075,0.0001,2]
[356381463,1742357006184,191.49541523,0.00029928,120]
[356381486,1742357431544,-280.5218819,9.7e-05,2]
[356381488,1742357431555,-250.0,9.725e-05,2]
[356381490,1742357431565,-143.4811181,9.8e-05,2]
[356381505,1742357431703,-512.0528819,9.8e-05,2]
[356381506,1742357431713,-403.0283,9.9e-05,2]
[356381507,1742357431723,-230.9253,9.9e-05,2]
[356381508,1742357431733,-294.8191246,9.9e-05,2]
[356381509,1742357431743,-18111.86297963,9.99e-05,2]
[356381510,1742357431755,-541.02982009,9.99e-05,2]
[356381511,1742357431766,-876.49,9.99e-05,2]
[356381512,1742357431778,-638.65289464,9.99e-05,2]
[356381513,1742357431789,-3148.97995,9.99e-05,2]
[356381514,1742357431814,-14915.72856857,9.99e-05,2]
[356381515,1742357431824,-1014.36400686,9.999e-05,2]
[356381516,1742357431834,-150.0,9.999e-05,2]
[356381517,1742357431843,-294.8191246,9.999e-05,2]
[356381518,1742357431854,-166.11186238,0.0001,2]
[356381519,1742357431863,-28673.10512775,0.0001,2]
[356381520,1742357431875,-51020.04527399,0.0001,2]
[356381521,1742357431887,-1158.5934276,0.0001,2]
[356381524,1742357437452,-1104.90149786,0.0001,2]
[356381525,1742357437464,-900.48983006,0.0001,2]
[356381526,1742357437476,-2388.6000052,0.0001,2]
[356381527,1742357437487,-5602.70304,0.0001,2]
[356381528,1742357437504,-42669.96766418,0.0001,2]
[356381529,1742357437559,-612.60000005,0.0001,2]
[356381530,1742357437619,-1426.51243399,0.0001,2]
[356381531,1742357437633,-1290.0,0.0001,2]
[356381532,1742357437645,-1011.85,0.0001,2]
[356381533,1742357437659,-7524.1778732,0.0001,2]
[356381584,1742357439768,-7271.35886042,0.0001,2]
[356381585,1742357440126,-40133.78516035,0.0001,2]
[356381586,1742357440138,-1252.72336616,0.0001,2]
[356381588,1742357440149,-291.65500001,0.0001,2]
[356381758,1742357442703,-749074.02996813,0.0001,2]
[356381759,1742357442749,-2301.85917102,0.0001,2]
[356381760,1742357442760,-4897.1909532,0.0001,2]
[356381761,1742357442771,-9289.25953684,0.0001,2]
[356381764,1742357445736,-1602.70349695,0.0001,2]
[356381765,1742357445894,-31376.91292843,0.0001,2]
[356381766,1742357445906,-5727.067215,0.0001,2]
[356381847,1742358631718,-168.8834848,9.7e-05,2]
[356381849,1742358631727,-150.0,9.8e-05,2]
[356381850,1742358631737,-524.427,9.8e-05,2]
[356381851,1742358631747,-1594.8344,9.9e-05,2]
[356381852,1742358631758,-149.9551154,9.9e-05,2]
[356381853,1742358631775,-2347.49535776,9.9e-05,2]
[356381854,1742358631787,-6533.99523132,9.9e-05,2]
[356381855,1742358631798,-1128.68085537,9.9e-05,2]
[356381856,1742358631945,-3828.80000002,9.9e-05,2]
[356381861,1742358637592,-4244.89250349,9.9e-05,2]
[356381862,1742358637703,-2598.69433745,9.9e-05,2]
[356381863,1742358637714,-1363.83747749,9.9e-05,2]
[356381864,1742358637761,-8402.87019244,9.9e-05,2]
[356381865,1742358637773,-1160.19392926,9.9e-05,2]
[356381866,1742358637782,-227.00000016,0.0001,2]
[356381867,1742358637792,-461.39025262,0.0001,2]
[356381871,1742358639816,-798.52623198,0.0001,2]
[356381872,1742358639828,-900.0,0.0001,2]
[356381873,1742358639839,-1030.82396,0.0001,2]
[356381874,1742358640149,-3537.08530993,0.0001,2]
[356381875,1742358640206,-254.98887991,0.0001,2]
[356381876,1742358640321,-4000.0,0.0001,2]
[356381877,1742358640334,-500.0,0.0001,2]
[356381878,1742358640378,-1250.46736825,0.0001,2]
[356381880,1742358640390,-2195.30000002,0.0001,2]
[356381950,1742358643458,-1094.41855577,0.0001,2]
[356381951,1742358643469,-6735.58384872,0.0001,2]
[356381952,1742358643481,-2485.06689513,0.0001,2]
[356381953,1742358646030,-583.080834,0.0001,2]
[356381954,1742358646042,-269.67587118,0.0001,2]
[356381955,1742358796623,480.0,9.7e-05,30]
[356381956,1742358996869,879.35,8.219e-05,2]
[356381957,1742359516134,-154.3501345,8.952e-05,2]
[356381960,1742359574326,1000.0,8.896e-05,2]
[356381961,1742359592942,-150.0,8.952e-05,2]
[356381964,1742359670938,-230.68395514,8.952e-05,2]
[356381965,1742359684051,-250.0,8.951e-05,2]
[356381966,1742359746295,-173.36395514,8.906e-05,2]
[356381968,1742359831955,-57.82,8.951e-05,2]
[356381969,1742359831965,-250.0,8.951e-05,2]
[356381970,1742359831976,-124.39122534,8.997e-05,2]
[356381971,1742359832011,-171.79877466,8.997e-05,2]
[356381972,1742359832022,-300.0,9.049e-05,2]
[356381973,1742359832032,-18511.43,9.089e-05,2]
[356381974,1742359832043,-1014.36400686,9.204e-05,2]
[356381975,1742359832054,-593.9102999,9.204e-05,2]
[356381976,1742359832064,-150.0,9.204e-05,2]
[356381977,1742359832075,-294.8191246,9.204e-05,2]
[356381979,1742359832086,-17446.98299055,9.205e-05,2]
[356381981,1742359832099,-686.38615094,9.205e-05,2]
[356381982,1742359832236,-1199.90043709,9.205e-05,2]
[356381983,1742359832249,-5583.70590166,9.205e-05,2]
[356381984,1742359832262,-328.01300429,9.205e-05,2]
[356382017,1742359832759,13643.55,8.806e-05,2]
[356382018,1742359837789,-35642.31151547,9.205e-05,2]
[356382019,1742359837800,-1500.0,9.21e-05,2]
[356382020,1742359837811,-624.64,9.298e-05,2]
[356382021,1742359837823,-2000.0,9.382e-05,2]
[356382022,1742359837833,-409.98,9.461e-05,2]
[356382023,1742359837843,-150.0,9.562e-05,7]
[356382024,1742359837853,-179.23,9.582e-05,2]
[356382025,1742359837863,-15119.08,9.67e-05,2]
[356382026,1742359837874,-2897.36,9.67e-05,2]
[356382027,1742359837884,-1885.35,9.67e-05,2]
[356382028,1742359837894,-153.63,9.691e-05,2]
[356382029,1742359837905,-2500.0,9.7e-05,2]
[356382030,1742359837915,-227.16,9.731e-05,2]
[356382031,1742359837926,-250.0,9.846e-05,2]
[356382032,1742359837937,-250.0,9.863e-05,2]
[356382033,1742359837947,-1390.4149,9.9e-05,2]
[356382034,1742359837958,-6897.6202,9.9e-05,2]
[356382035,1742359837967,-2356.9382,9.9e-05,2]
[356382036,1742359837978,-2500.0,9.9e-05,2]
[356382037,1742359837989,-9670.66349787,9.91e-05,2]
[356382038,1742359837999,-1900.60052565,9.941e-05,2]
[356382039,1742359838011,-4682.65947435,9.941e-05,2]
[356382040,1742359838022,-161.46025416,9.973e-05,2]
[356382041,1742359838032,-2985.1197117,9.996e-05,2]
[356382042,1742359838043,-786.3065122,9.996e-05,2]
[356382043,1742359838053,-419.542,9.999e-05,2]
[356382044,1742359838063,-240.4780654,9.999e-05,2]
[356382045,1742359838074,-576.0,0.0001,2]
[356382046,1742359838083,-57285.90801635,0.0001,2]
[356382047,1742359838100,-673.63795176,0.0001,2]
[356382136,1742359840033,-250.00582104,0.0001,2]
[356382137,1742359840299,-856.78733278,0.0001,2]
[356382138,1742359840359,-354.63427541,0.0001,2]
[356382148,1742359842928,-3549.96844399,0.0001,2]
[356382149,1742359843438,-4656.8773694,0.0001,2]
[356382150,1742359843450,-2599.98743998,0.0001,2]
[356382151,1742359843461,-8402.4,0.0001,2]
[356382152,1742359845873,-204.15403373,9.99e-05,2]
[356382153,1742359845883,-521.0,0.0001,2]
[356382154,1742359845893,-3946.85401134,0.0001,2]
[356382156,1742359845904,-5722.32155505,0.0001,2]
[356382157,1742359845928,-379.89623438,0.0001,2]
[356382158,1742359845985,-335.30570427,0.0001,2]
[356382159,1742359845996,-680.31065153,0.0001,2]
[356382160,1742359846009,-470.22347517,0.0001,2]
[356382161,1742359846041,-961.72624109,0.0001,2]
[356382162,1742359846052,-879.41035815,0.0001,2]
[356382163,1742359846063,-3104.192539,0.0001,2]
[356382164,1742359846153,-1936.62483291,0.0001,2]
[356382165,1742359846164,-8936.01055095,0.0001,2]
[356382166,1742359846175,-49213.03305148,0.0001,2]
[356382167,1742359846187,-524.21645382,0.0001,2]
[356382168,1742359846210,-543.2619752,0.0001,2]
[356382169,1742359846221,-769.686283,0.0001,2]
[356382170,1742359846232,-435.53978744,0.0001,2]
[356382171,1742360622530,-1500.0,9.656e-05,2]
[356382172,1742360622552,-1273.370701,9.672e-05,2]
[356382173,1742360622579,-286.6053014,9.7e-05,2]
[356382174,1742360622611,-250.0,9.721e-05,2]
[356382175,1742360622640,-150.0,9.791e-05,2]
[356382176,1742360622665,-250.0,9.862e-05,2]
[356382177,1742360622688,-400.7164,9.9e-05,2]
[356382178,1742360622711,-1535.7504,9.9e-05,2]
[356382179,1742360622734,-1974.087,9.9e-05,2]
[356382180,1742360622757,-396.4343,9.9e-05,2]
[356382181,1742360622780,-1837.919118,9.9e-05,2]
[356382182,1742360622804,-1000.0,9.9e-05,2]
[356382183,1742360622827,-160.50560388,9.973e-05,2]
[356382184,1742360622850,-598.6381341,9.994e-05,2]
[356382185,1742360622873,-1116.67114393,9.998e-05,2]
[356382186,1742360622897,-1116.67114393,9.999e-05,2]
[356382187,1742360622922,-150.0,9.999e-05,2]
[356382188,1742360622945,-413.38906643,9.999e-05,2]
[356382189,1742360622967,-500.0,9.999e-05,2]
[356382190,1742360622990,-571.72937744,9.999e-05,2]
[356382191,1742360623019,-176.108,0.0001,2]
[356382192,1742360623043,-634.0,0.0001,2]
[356382193,1742360623066,-153.54367013,0.0001,2]
[356382194,1742360623092,-87702.98541279,0.0001,2]
[356382195,1742360623116,-14816.64868091,0.0001,2]
[356382196,1742360623140,-760007.07774069,0.0001,2]
[356382197,1742360675346,-214.953976,9.7e-05,2]
[356382198,1742360675368,-1296.0758,9.9e-05,2]
[356382199,1742360683508,-3497.7680148,9.994e-05,2]
[356382200,1742360683532,-300.0,9.999e-05,2]
[356382201,1742360683554,-563.0,0.0001,2]
[356382202,1742360683581,-153.54367012,0.0001,2]
[356382203,1742360683608,-43851.4927064,0.0001,2]
[356382204,1742360683632,-250.0,0.0001,2]
[356382205,1742360683656,-150.0,0.0001,2]
[356382206,1742360683680,-68550.16583268,0.0001,2]
[356382210,1742361032089,-161.215482,9.7e-05,2]
[356382211,1742361032099,-250.0,9.8e-05,2]
[356382212,1742361032109,-500.0,9.9e-05,2]
[356382213,1742361032119,-812.1274,9.9e-05,2]
[356382214,1742361032129,-1000.0,9.9e-05,2]
[356382215,1742361032139,-1681.8849,9.9e-05,2]
[356382216,1742361032148,-176.55255506,9.9e-05,2]
[356382217,1742361032158,-961.7882176,9.994e-05,2]
[356382218,1742361032168,-150.0,9.999e-05,2]
[356382219,1742361032178,-3683.80293215,0.0001,2]
[356382220,1742361032197,-757.19135972,0.0001,2]
[356382221,1742361032327,-37567.2895031,0.0001,2]
[356382222,1742361032368,-580.99624631,0.0001,2]
[356382223,1742361032430,-750.17916997,0.0001,2]
[356382224,1742361032485,-3079.51141144,0.0001,2]
[356382225,1742361032496,-2501.25394069,0.0001,2]
[356382226,1742361032508,-293.49962424,0.0001,2]
[356382227,1742361032519,-9187.9905704,0.0001,2]
[356382235,1742361038027,-12592.04216613,0.0001,2]
[356382236,1742361038039,-1002.75308963,0.0001,2]
[356382237,1742361038087,-1196.53325153,0.0001,2]
[356382238,1742361038197,-258.1116423,0.0001,2]
[356382239,1742361038209,-535.04840775,0.0001,2]
[356382240,1742361038306,-1233.42756601,0.0001,2]
[356382241,1742361038318,-16710.41070131,0.0001,2]
[356382242,1742361038329,-9233.78530608,0.0001,2]
[356382243,1742361038366,-560.05861585,0.0001,2]
[356382245,1742361038378,-5048.8,0.0001,2]
[356382247,1742361040508,-986.91958438,0.0001,2]
[356382248,1742361040566,-11923.96351779,0.0001,2]
[356382346,1742361043127,-1719.20836331,0.0001,2]
[356382347,1742361043184,-39398.49353293,0.0001,2]
[356382348,1742361043199,-676.16000008,0.0001,2]
[356382349,1742361043239,-2782.7,0.0001,2]
[356382350,1742361044169,-3867.34,0.0001,2]
[356382351,1742361044181,-6266.8835218,0.0001,2]
[356382352,1742361044193,-800.069992,0.0001,2]
[356382353,1742361044209,-798.19146953,0.0001,2]
[356382354,1742361044221,-3275.53723411,0.0001,2]
[356382355,1742361044233,-15275.11202038,0.0001,2]
[356382356,1742361044244,-4325.99470946,0.0001,2]
[356382357,1742361044256,-1017.6830018,0.0001,2]
[356382358,1742361044268,-1189.88173211,0.0001,2]
[356382359,1742361044280,-446.51173508,0.0001,2]
[356382360,1742361044292,-1152.9712,0.0001,2]
[356382364,1742361046174,-58637.07822018,0.0001,2]
[356382365,1742361046186,-61877.26545871,0.0001,2]
[356382366,1742361046199,-500.0,0.0001,2]
[356382367,1742361046230,-4445.38032,0.0001,2]
[356382368,1742361046288,-11615.0282456,0.0001,2]
[356382369,1742361046301,-38368.9285714,0.0001,2]
[356382370,1742361046314,-51749.28539569,0.0001,2]
[356382371,1742361046406,-1427.26659171,0.0001,2]
[356382372,1742361046418,-1159.3,0.0001,2]
[356382373,1742361046433,-9771.2,0.0001,2]
[356382377,1742361046803,-0.99720147,0.0001,2]
[356382380,1742361046816,-1000.0,0.0001,2]
[356382381,1742361417889,176.7,8.896e-05,2]
[356382382,1742361463579,3400.0,0.00029918,120]
[356382383,1742361936782,1161.34121138,8e-05,2]
[356382388,1742361955378,1712.04790794,6.94e-05,2]
[356382389,1742361956416,182477.82413766,0.00029918,30]
[356382390,1742361962928,1050.52382254,8e-05,2]
[356382392,1742361996925,1095.55993955,0.00029918,120]
[356382395,1742362074752,1136.78729809,8e-05,2]
[356382398,1742362106042,376.63980485,7.888e-05,2]
[356382405,1742362163924,1794.93,8.219e-05,2]
[356382413,1742362232262,-486.87103,9.627e-05,2]
[356382415,1742362232275,-513.12897,9.627e-05,2]
[356382416,1742362232285,-421.93755891,9.64e-05,2]
[356382417,1742362232298,-804.51244109,9.64e-05,2]
[356382418,1742362232308,-161.215482,9.7e-05,2]
[356382419,1742362232319,-165.4146904,9.7e-05,2]
[356382420,1742362232329,-215.14994824,9.799e-05,2]
[356382421,1742362232341,-84.85005176,9.799e-05,2]
[356382422,1742362232351,-1732.0746861,9.8e-05,2]
[356382423,1742362232363,-2702.7539139,9.8e-05,2]
[356382424,1742362232373,-267.744,9.8e-05,2]
[356382425,1742362232383,-2173.12666923,9.8e-05,2]
[356382426,1742362232395,-860.67663077,9.8e-05,2]
[356382427,1742362232404,-165.4146904,9.8e-05,2]
[356382428,1742362232414,-308.85351261,9.899e-05,2]
[356382429,1742362232424,-150.0,9.899e-05,2]
[356382430,1742362232434,-2525.0649,9.9e-05,2]
[356382431,1742362232444,-209.3327,9.9e-05,2]
[356382432,1742362232453,-90.34749642,9.9e-05,2]
[356382433,1742362232466,-409.65250358,9.9e-05,2]
[356382434,1742362232475,-2119.42488907,9.9e-05,2]
[356382435,1742362232487,-8834.71441093,9.9e-05,2]
[356382436,1742362232497,-1000.0,9.9e-05,2]
[356382437,1742362232509,-48905.37750551,9.9e-05,2]
[356382438,1742362232520,-787.72537109,9.9e-05,2]
[356382439,1742362232531,-367.35042861,9.9e-05,2]
[356382440,1742362232543,-5772.82882585,9.9e-05,2]
[356382441,1742362232559,-3473.13022299,9.9e-05,2]
[356382442,1742362232571,-687.92150937,9.9e-05,2]
[356382443,1742362232583,-6076.01683658,9.9e-05,2]
[356382444,1742362232593,-1377.54270156,9.9e-05,2]
[356382445,1742362232606,-1117.33589844,9.9e-05,2]
[356382446,1742362232616,-1000.0,9.9e-05,2]
[356382447,1742362232626,-2061.52010156,9.9e-05,2]
[356382500,1742362238165,-438.47989844,9.9e-05,2]
[356382501,1742362238176,-165.4146904,9.9e-05,2]
[356382502,1742362238186,-399.41658153,9.973e-05,2]
[356382503,1742362238196,-500.0,9.973e-05,2]
[356382504,1742362238206,-352.11200252,9.973e-05,2]
[356382505,1742362238215,-3266.38907049,9.98e-05,2]
[356382506,1742362238225,-791.8968548,9.998e-05,2]
[356382507,1742362238234,-1184.3828799,9.998e-05,2]
[356382508,1742362238244,-7183.6164373,9.998e-05,2]
[356382509,1742362238254,-22688.72606883,0.0001,2]
[356382510,1742362238265,-17901.48808977,0.0001,2]
[356382514,1742362240535,-297.79622824,9.9e-05,2]
[356382517,1742362243295,-619.2449657,9.9e-05,2]
[356382520,1742362244262,-82.95880606,9.9e-05,2]
[356382521,1742362244272,-679.07373473,0.0001,2]
[356382522,1742362244307,-1641.91733968,0.0001,2]
[356382523,1742362244319,-4131.92845925,0.0001,2]
[356382524,1742362244331,-724.35005528,0.0001,2]
[356382525,1742362246299,-8476.4,0.0001,2]
[356382526,1742362246415,-904.64662748,0.0001,2]
[356382527,1742362246474,-26387.43279008,0.0001,2]
[356382528,1742362246485,-507.21211782,0.0001,2]
[356382529,1742362246590,-616.0,0.0001,2]
[356382532,1742362606075,427.02887377,0.00022,120]
[356382533,1742362763399,-696.498077,9.003e-05,2]
[356382534,1742362810019,-278.321923,9.003e-05,2]
[356382535,1742362810045,-221.678077,9.162e-05,2]
[356382536,1742362892677,-150.0,8.963e-05,2]
[356382537,1742362911575,13564.16,8.854e-05,2]
[356382538,1742362933376,-250.0,8.947e-05,2]
[356382539,1742363021870,2000.0,8.751e-05,2]
[356382540,1742363031211,1000.0,8.751e-05,2]
[356382541,1742363043071,-150.0,8.947e-05,2]
[356382542,1742363072882,-48.79,8.947e-05,2]
[356382543,1742363072906,-131.07,8.947e-05,2]
[356382544,1742363095840,1973.08,8.769e-05,2]
[356382545,1742363096078,1973.08,8.792e-05,2]
[356382546,1742363096282,1973.08,8.815e-05,2]
[356382547,1742363096488,1973.08,8.838e-05,2]
[356382548,1742363096713,1973.08,8.861e-05,2]
[356382549,1742363097133,1973.08,8.884e-05,2]
[356382550,1742363126132,214.67,8.862e-05,2]
[356382555,1742363145938,1500.0,8.557e-05,2]
[356382556,1742363201171,1846.3,8.558e-05,2]
[356382557,1742363220822,1746.27,8.219e-05,2]
[356382561,1742363254832,300.0,8.572e-05,2]
[356382562,1742363297170,3970.53,8.557e-05,2]
[356382563,1742363323658,-1866.75694867,8.907e-05,2]
[356382564,1742363326499,-106.32305133,8.907e-05,2]
[356382565,1742363326523,-111.45055862,8.93e-05,2]
[356382567,1742363390324,1645.22,8.557e-05,2]
[356382568,1742363403926,-106.32305133,8.93e-05,2]
[356382569,1742363403957,-143.67694867,8.93e-05,2]
[356382573,1742363430653,2156.5726,8.876e-05,2]
[356382575,1742363431441,-106.32305133,8.93e-05,2]
[356382576,1742363431451,-1973.08,8.93e-05,2]
[356382577,1742363431461,-48.79,8.947e-05,2]
[356382578,1742363431471,-1973.08,8.953e-05,2]
[356382579,1742363431480,-99.97,8.963e-05,2]
[356382580,1742363431490,-1973.08,8.977e-05,2]
[356382581,1742363431503,-1973.08,9e-05,2]
[356382582,1742363431512,-509.6,9.01e-05,2]
[356382583,1742363431522,-300.0,9.022e-05,2]
[356382584,1742363431531,-198.1395132,9.023e-05,2]
[356382585,1742363431543,-1774.9404868,9.023e-05,2]
[356382586,1742363431552,-1973.08,9.046e-05,2]
[356382587,1742363431563,-1170.9387932,9.069e-05,2]
[356382588,1742363431574,-802.1412068,9.069e-05,2]
[356382589,1742363431586,-1973.08,9.092e-05,2]
[356382590,1742363431595,-1973.08,9.115e-05,2]
[356382591,1742363431605,-1761.94956033,9.138e-05,2]
[356382592,1742363431616,-211.13043967,9.138e-05,2]
[356382593,1742363431625,-1337.74108192,9.161e-05,2]
[356382594,1742363431674,-635.33891808,9.161e-05,2]
[356382595,1742363431685,-10.311923,9.162e-05,2]
[356382596,1742363431694,-1973.08,9.184e-05,2]
[356382597,1742363431704,-1973.08,9.207e-05,2]
[356382598,1742363431713,-194.72,9.263e-05,2]
[356382599,1742363431723,-250.0,9.311e-05,2]
[356382600,1742363431732,-2000.0,9.442e-05,2]
[356382602,1742363431742,-150.0,9.486e-05,2]
[356382604,1742363431751,-3843.36,9.486e-05,2]
[356382606,1742363431760,-500.0,9.516e-05,2]
[356382608,1742363431770,-1831.99,9.581e-05,2]
[356382610,1742363431780,-868.08361754,9.67e-05,2]
[356382612,1742363431789,-231.99,9.671e-05,2]
[356382613,1742363431799,-1000.0,9.681e-05,2]
[356382614,1742363431808,-998.055,9.681e-05,2]
[356382616,1742363431818,-680.45457441,9.681e-05,2]
[356382617,1742363431827,-7711.90532191,9.682e-05,2]
[356382618,1742363431839,-12406.45183509,9.682e-05,2]